[Event "EYTCC Open U18 2022"]
[Site "Thessaloniki"]
[Date "2022.07.18"]
[Round "7.21"]
[White "Filip, Andrei"]
[Black "Subelj, Jan"]
[Result "0-1"]
[ECO "B06"]
[WhiteElo "2344"]
[BlackElo "2498"]
[Annotator "TA"]
[PlyCount "86"]
[EventDate "2022.07.12"]
[EventType "team-tourn"]
[EventCountry "GRE"]
[SourceTitle "playchess.com"]
[Source "ChessBase"]
[SourceQuality "1"]
[WhiteTeam "Romania"]
[BlackTeam "Slovenia"]
[WhiteTeamCountry "ROU"]
[BlackTeamCountry "SLO"]
[TimeControl "40/5400+30:1800+30"]

{[%evp 17,85,30,30,28,32,31,33,25,31,26,29,8,52,32,32,32,46,41,53,40,47,58,50,36,34,19,20,6,20,7,30,6,0,0,0,0,4,-21,-28,-54,-44,-56,-42,-66,-47,-88,-47,-55,-47,-104,-112,-235,-238,-584,-581,-895,-872,-1507,-274,-945,-902,-889,-859,-29988,-29989,-29989,-29990,-29997,-29998,-29999]} 1. e4 {[%emt 0:00:03]} g6 {[%emt 0:00:43]} 2. d4 {[%emt 0:00:22]} Bg7 {[%emt 0:00:21]} 3. Nf3 {[%emt 0:03:39]} d6 {[%emt 0:01:05]} 4. c4 {[%emt 0:00:40]} Bg4 {[%emt 0:10:02]} 5. Be2 {[%emt 0:03:01]} Bxf3 {[%emt 0:04:42]} 6. Bxf3 {[%emt 0:00:15]} Nc6 {[%emt 0:00:21]} 7. Be3 {[%emt 0:04:04]} e5 {[%emt 0:02:15]} 8. d5 {[%emt 0:00:13]} Nd4 {[%emt 0:01:06]} 9. Nc3 {[%emt 0:00:39]} c5 $1 {[%emt 0:02:46] 9...c5 scores better than 9...Ne7.} 10. dxc6 {[%emt 0:19:58] A41: 1 d4 d6: Tartakower System and Modern Defence.} bxc6 {[%emt 0:00:39]} 11. O-O {[%emt 0:00:40]} Ne7 {[%emt 0:07:07]} 12. c5 {[%emt 0:07:25] White is slightly better.} O-O {[%emt 0:00:22]} 13. cxd6 {[%emt 0:01:13]} Qxd6 {[%emt 0:00:05]} 14. Be2 {[%emt 0:01:17] [#]} c5 $146 {[%emt 0:02:31]} ({Predecessor:} 14... Rab8 15. b3 Rfd8 16. Bc4 Nc8 17. f4 Qb4 18. Bxd4 Rxd4 19. Qf3 Nd6 20. fxe5 Nxc4 21. bxc4 Qxc4 {½-½ (38) Jerez Perez,A (2410)-Rodriguez Vila,A (2531) Canovelles 2008}) 15. Bc4 {[%emt 0:01:08]} Kh8 {[%emt 0:00:35]} 16. Rc1 {[%emt 0:01:59]} f5 {[%emt 0:04:23]} 17. f3 {[%emt 0:03:05]} Rab8 {[%emt 0:09:35]} 18. b3 {[%emt 0:00:50]} f4 {[%emt 0:01:39]} 19. Bf2 {[%emt 0:00:52]} g5 {[%emt 0:00:56]} 20. Nd5 {[%emt 0:05:32]} Nec6 {[%emt 0:01:10]} 21. Be2 {[%emt 0:08:52]} Rg8 {[%emt 0:11:03]} 22. Qd3 {[%emt 0:03:16]} Bf8 {[%emt 0:00:38]} 23. Qa6 {[%emt 0:04:23]} Qd8 {[%emt 0:04:33]} 24. h3 {[%emt 0:03:17]} Rg6 {[%emt 0:01:24]} 25. Qc4 {[%emt 0:02:25]} h5 {[%emt 0:08:46]} 26. Bd1 {[%emt 0:02:13]} Rb7 {[%emt 0:05:19]} 27. Rc3 {[%emt 0:01:42]} Qa5 {[%emt 0:02:24]} 28. a4 {[%emt 0:09:42]} Qd8 {[%emt 0:00:34]} 29. Qd3 {[%emt 0:01:07]} Rh7 {[%emt 0:00:54]} 30. Qc4 {[%emt 0:01:04]} Qd7 {[%emt 0:01:18] Black is more active.} 31. Re1 {[%emt 0:04:43]} a5 {[%emt 0:01:58]} 32. Rd3 {[%emt 0:01:45]} Qg7 {[%emt 0:00:27]} 33. Rc3 {[%emt 0:00:25]} (33. Bxd4 $15 cxd4 34. Be2) 33... Qh6 $17 {[%emt 0:01:08][%cal Og5g4]} 34. Kf1 {[%emt 0:00:31] [#] Now White is beyond hope.} (34. Kh1 $17) 34... g4 $1 $19 {[%emt 0:02:31]} 35. fxg4 {[%emt 0:01:43]} (35. h4 {nothing else works.}) 35... hxg4 {[%emt 0:00:07]} 36. Bxg4 {[%emt 0:00:32] [#]} Rxg4 {[%emt 0:00:04][%mdl 512]} 37. hxg4 {[%emt 0:00:07]} (37. Nf6 Qxf6) 37... Qh1+ {[%emt 0:00:17]} 38. Bg1 {[%emt 0:00:01] Threatens to win with Nf6.} f3 {[%emt 0:00:17][%csl Gf3][%cal Rh1g2]} 39. Ne3 {[%emt 0:02:24]} Bh6 {[%emt 0:02:16] ( -> ...Bxe3)} (39... Ne2 $2 40. Rxe2 fxe2+ 41. Qxe2 $18) ({Wrong is} 39... Rg7 $2 40. Kf2 $19) 40. Kf2 {[%emt 0:00:00]} Bf4 {[%emt 0:00:00] Black mates.} 41. Rc2 {[%emt 0:07:56]} Nxc2 {[%emt 0:03:30] Pair of Knights!} 42. Qe6 {[%emt 0:00:06]} Qh4+ {[%emt 0:00:13]} 43. Kxf3 {[%emt 0:00:31]} N6d4# {[%emt 0:00:08] Weighted Error Value: White=0.55/Black=0.13 (very precise)} 0-1

[Event "EYTCC Open U18 2022"]
[Site "Thessaloniki"]
[Date "2022.07.18"]
[Round "7.22"]
[White "Marn, Jan"]
[Black "Stepanencu, Nicodim-Cosmin"]
[Result "1-0"]
[ECO "E04"]
[WhiteElo "2282"]
[BlackElo "2277"]
[Annotator "TA"]
[PlyCount "73"]
[EventDate "2022.07.12"]
[EventType "team-tourn"]
[EventCountry "GRE"]
[SourceTitle "playchess.com"]
[Source "ChessBase"]
[SourceQuality "1"]
[WhiteTeam "Slovenia"]
[BlackTeam "Romania"]
[WhiteTeamCountry "SLO"]
[BlackTeamCountry "ROU"]
[TimeControl "40/5400+30:1800+30"]

{[%evp 23,73,29,22,0,0,0,16,12,18,13,13,14,28,27,37,11,9,15,6,14,23,18,21,22,40,29,41,27,424,416,470,466,460,458,451,457,479,474,498,482,521,520,520,514,520,520,512,505,596,589,597,590]} 1. d4 {[%emt 0:00:00]} Nf6 {[%emt 0:00:21]} 2. c4 e6 {[%emt 0:00:19]} 3. g3 {[%emt 0:00:13]} d5 {[%emt 0:00:04]} 4. Nf3 {[%emt 0:00:07]} dxc4 {[%emt 0:00:05]} 5. Bg2 {[%emt 0:00:06]} c5 6. O-O {[%emt 0:00:10]} Nc6 {[%emt 0:00:28]} 7. dxc5 {[%emt 0:00:08]} Qxd1 {[%emt 0:00:05]} 8. Rxd1 {[%emt 0:00:08]} Bxc5 {[%emt 0:00:02]} 9. Nbd2 {[%emt 0:00:10]} c3 {[%emt 0:00:06]} 10. bxc3 {[%emt 0:00:06]} O-O {[%emt 0:00:21]} 11. Nb3 {[%emt 0:00:07]} Be7 {[%emt 0:00:35]} 12. c4 {[%emt 0:02:47]} Bd7 {[%emt 0:22:42]} 13. Nfd4 {[%emt 0:05:25] E04: Open Catalan: 5 Nf3.} Rac8 {[%emt 0:03:04]} 14. Nb5 {[%emt 0:04:15] [#]} Nb4 $146 {[%emt 0:11:39]} ({Predecessor:} 14... Rfd8 15. c5 Be8 16. Bf4 Rxd1+ 17. Rxd1 a6 18. Nd6 Rd8 19. Rb1 Bxd6 20. cxd6 e5 21. Bxc6 exf4 22. Bxb7 fxg3 23. hxg3 Rxd6 {1-0 (60) Kollars,D (2635)-Goryachkina,A (2610) Chess.com INT 2022}) 15. Bg5 {[%emt 0:05:51] [#] Rxd7 is the strong threat. The position is equal.} Bxb5 {[%emt 0:13:04]} 16. cxb5 {[%emt 0:00:09]} h6 {[%emt 0:02:49]} 17. Bd2 {[%emt 0:03:18] This bishop pair is nice.} Nc2 {[%emt 0:03:14]} 18. Rac1 {[%emt 0:07:21]} Nd5 {[%emt 0:02:21]} 19. Bxd5 {[%emt 0:29:48]} exd5 {[%emt 0:00:07]} 20. Bf4 {[%emt 0:00:05]} Ba3 {[%emt 0:14:50]} 21. Rb1 {[%emt 0:00:07]} Rfe8 {[%emt 0:01:11]} 22. Kf1 {[%emt 0:01:53]} g5 {[%emt 0:11:34]} 23. Bc1 {[%emt 0:00:07]} Re5 {[%emt 0:00:08]} 24. Bb2 {[%emt 0:04:45]} Bxb2 {[%emt 0:09:05]} 25. Rxb2 {[%emt 0:00:05] aiming for Rc1.} d4 $2 {[%emt 0:01:19][%mdl 8192] [#] This costs Black the game.} (25... Na3 $1 $11) 26. Rc1 $1 $18 {[%emt 0:02:06]} Ne3+ {[%emt 0:01:42]} (26... d3 $2 27. exd3 Rc3 28. Rbxc2) 27. fxe3 {[%emt 0:00:05] White is clearly winning.} Rxc1+ {[%emt 0:00:06]} 28. Nxc1 {[%emt 0:00:08]} dxe3 {[%emt 0:00:02][%mdl 4096] Endgame KRN-KR} 29. Nd3 {[%emt 0:00:31]} Rf5+ {[%emt 0:00:14]} 30. Kg2 {[%emt 0:00:06]} Kg7 {[%emt 0:01:49]} 31. Rb4 {[%emt 0:00:58]} a5 {[%emt 0:00:21]} 32. bxa6 {[%emt 0:00:14]} bxa6 {[%emt 0:00:02]} 33. Ra4 {[%emt 0:00:38]} Rf6 {[%emt 0:01:00]} 34. Re4 {[%emt 0:00:18]} Rc6 {[%emt 0:00:04]} 35. Kf3 {[%emt 0:00:05]} f5 {[%emt 0:00:29]} 36. Re5 {[%emt 0:00:22]} Rc2 {[%emt 0:01:12]} 37. Ra5 {[%emt 0:00:08] Weighted Error Value: White=0.04 (flawless) /Black=0.47} 1-0

[Event "EYTCC Open U18 2022"]
[Site "Thessaloniki"]
[Date "2022.07.18"]
[Round "7.23"]
[White "Antonica, Dragos-Andrei"]
[Black "Nareks, Matic"]
[Result "0-1"]
[ECO "A01"]
[WhiteElo "2355"]
[BlackElo "2221"]
[Annotator "TA"]
[PlyCount "44"]
[EventDate "2022.07.12"]
[EventType "team-tourn"]
[EventCountry "GRE"]
[SourceTitle "playchess.com"]
[Source "ChessBase"]
[SourceQuality "1"]
[WhiteTeam "Romania"]
[BlackTeam "Slovenia"]
[WhiteTeamCountry "ROU"]
[BlackTeamCountry "SLO"]
[TimeControl "40/5400+30:1800+30"]

{[%evp 16,44,-13,0,0,0,2,-23,-28,-58,-47,-74,-77,-77,-23,-12,-7,-118,-117,-139,0,-328,-330,-339,-328,-307,0,0,0,-592,-630]} 1. b3 {[%emt 0:00:02] Ftacnik,L} e5 {[%emt 0:00:09]} 2. Bb2 {[%emt 0:00:03]} Nc6 {[%emt 0:00:06]} 3. c4 {[%emt 0:00:02]} Nf6 {[%emt 0:00:07]} 4. e3 {[%emt 0:00:20]} d5 {[%emt 0:00:07]} 5. cxd5 {[%emt 0:00:06]} Nxd5 {[%emt 0:00:05]} 6. a3 {[%emt 0:00:05]} Bd6 {[%emt 0:00:24]} 7. Qc2 {[%emt 0:01:03]} O-O {[%emt 0:01:27]} 8. Nf3 {[%emt 0:00:08]} Qe7 {[%emt 0:04:33]} 9. d3 {[%emt 0:02:25]} f5 {[%emt 0:05:13] A01: Nimzowitsch-Larsen Opening.} 10. Nbd2 {[%emt 0:01:56] 10.Nbd2 is better than 10.Be2.} Kh8 {[%emt 0:01:25]} 11. b4 {[%emt 0:04:50]} Bd7 {[%emt 0:03:57] [#] Black has an edge.} 12. g3 $146 {[%emt 0:23:21]} ({Predecessor:} 12. Be2 Rae8 13. Nc4 e4 14. Nxd6 cxd6 15. dxe4 fxe4 16. Nd4 Qg5 17. g3 Rxf2 18. Nxc6 Nxe3 19. Qc3 Ref8 20. Nd4 Rxe2+ {0-1 (20) Gorovets,A (2345)-Fedorov,A (2603) Minsk 2005 CBM 106 [Ftacnik,L]}) 12... Rae8 {[%emt 0:08:56]} 13. e4 {[%emt 0:07:17]} fxe4 {[%emt 0:11:03]} 14. dxe4 {[%emt 0:00:23] [#]} Nd4 {[%emt 0:10:07]} (14... a5 $1 $17 {[%cal Oa5b4]} 15. bxa5 (15. exd5 $2 Nd4 $17) 15... Nxa5 $1) 15. Nxd4 $11 {[%emt 0:13:20]} exd4 {[%emt 0:00:06]} 16. Bd3 {[%emt 0:14:08]} (16. Bxd4 $11 {remains equal.} Be5 17. Bc5) 16... Bh3 $1 $17 {[%emt 0:19:50] 0x0.001b83290227dp-1022s more active pieces. The white rooks are badly placed.} 17. Bxd4 {[%emt 0:12:38]} Be5 {[%emt 0:08:35]} (17... c5 $1 $17 {[%cal Rc5d4]} 18. bxc5 Be5 19. Bxe5 Qxe5) 18. Qb2 {[%emt 0:00:40][%mdl 8192]} (18. Bc5 $11 {and White stays safe.} Bd6 19. Bd4) 18... Bxd4 $1 $19 {[%emt 0:02:42]} 19. Qxd4 {[%emt 0:00:16] [#]} Rd8 {[%emt 0:00:07][%cal Od5f4] aiming for ...Nf4!} 20. Bf1 {[%emt 0:09:02]} Nxb4 $2 {[%emt 0:11:31]} 21. Qxb4 $11 {[%emt 0:02:35]} Qf6 {[%emt 0:00:05][%csl LRa1,LRf2]} 22. Bxh3 $4 {[%emt 0:01:30][%mdl 8192]} c5 $1 {[%emt 0:00:33] Weighted Error Value: White=1.10/Black=0.31} 0-1

[Event "EYTCC Open U18 2022"]
[Site "Thessaloniki"]
[Date "2022.07.18"]
[Round "7.24"]
[White "Lavrencic, Matic"]
[Black "Antal, Hunor-Zoltan"]
[Result "1/2-1/2"]
[ECO "B60"]
[WhiteElo "2151"]
[BlackElo "2263"]
[Annotator "TA"]
[PlyCount "71"]
[EventDate "2022.07.12"]
[EventType "team-tourn"]
[EventCountry "GRE"]
[SourceTitle "playchess.com"]
[Source "ChessBase"]
[SourceQuality "1"]
[WhiteTeam "Slovenia"]
[BlackTeam "Romania"]
[WhiteTeamCountry "SLO"]
[BlackTeamCountry "ROU"]
[TimeControl "40/5400+30:1800+30"]

{[%evp 13,71,51,47,43,47,41,64,63,76,70,70,26,23,22,22,22,37,20,17,25,50,52,53,10,11,6,45,45,52,47,55,44,68,72,72,45,68,73,75,54,52,55,53,49,56,51,52,11,11,11,12,8,16,8,14,0,12,0,15,0]} 1. e4 {[%emt 0:00:03] Gutman,L} c5 {[%emt 0:00:11]} 2. Nf3 {[%emt 0:00:05]} d6 {[%emt 0:00:06]} 3. d4 {[%emt 0:00:06]} cxd4 {[%emt 0:00:01]} 4. Nxd4 {[%emt 0:00:02]} Nf6 {[%emt 0:00:14]} 5. Nc3 {[%emt 0:00:04]} Nc6 {[%emt 0:00:07]} 6. Bg5 {[%emt 0:00:22]} g6 {[%emt 0:00:37]} 7. Bxf6 {[%emt 0:01:30]} exf6 {[%emt 0:00:02]} 8. Bb5 {[%emt 0:00:31] B60: Sicilian: Richter-Rauzer: Unusual Black 6th moves and 6...Bd7 without 7 Qd2.} Bd7 {[%emt 0:01:02]} 9. Qd2 {[%emt 0:05:18]} a6 {[%emt 0:15:27]} 10. Ba4 {[%emt 0:01:44] White is slightly better.} Bg7 {[%emt 0:06:17] [#]} 11. Nxc6 $146 {[%emt 0:00:59]} ({Predecessor:} 11. O-O-O f5 12. Bxc6 Bxc6 13. Nxc6 bxc6 14. Qxd6 Qxd6 15. Rxd6 Bxc3 16. bxc3 fxe4 17. Re1 {1-0 (29) Meijers,V (2486)-Ivanov,M (2418) Ditzingen 2005 CBM 106 Extra [Gutman,L]}) 11... Bxc6 {[%emt 0:00:09]} 12. O-O-O {[%emt 0:02:31] Hoping for Bxc6+.} Bxa4 {[%emt 0:04:02]} 13. Nxa4 {[%emt 0:00:19]} O-O {[%emt 0:00:09]} 14. Nc3 {[%emt 0:09:52]} Qa5 {[%emt 0:07:35]} 15. Kb1 {[%emt 0:01:18]} f5 {[%emt 0:05:48]} 16. exf5 {[%emt 0:00:22]} Bxc3 {[%emt 0:01:30]} 17. Qxc3 {[%emt 0:00:26]} Qxf5 {[%emt 0:00:02]} 18. Qd2 {[%emt 0:02:22]} ({But not} 18. Rxd6 Qxf2 19. Rd2 Qb6 $11) 18... Rac8 {[%emt 0:01:34]} 19. Rhe1 {[%emt 0:06:36]} Rc6 {[%emt 0:10:57]} 20. Re2 {[%emt 0:01:37]} Rfc8 {[%emt 0:01:39]} 21. Qd3 {[%emt 0:01:55]} Qf6 {[%emt 0:06:53]} 22. Qd4 {[%emt 0:11:22]} Qf5 {[%emt 0:00:36][%cal Rc6c2]} 23. Rde1 {[%emt 0:03:18] [#] Intending Re8+ and mate.} Rf8 {[%emt 0:02:37]} 24. a3 {[%emt 0:05:14]} b5 {[%emt 0:03:30]} 25. f3 {[%emt 0:06:40]} (25. h3 {keeps more tension.} a5 26. Qd2 b4 27. axb4 axb4 28. Qxb4 Ra6 29. Re8) 25... Qc5 {[%emt 0:10:49]} 26. Rd1 {[%emt 0:04:11][%cal Be1d1,Bd1d4,Bd4f4][%mdl 32] White is more active.} Rfc8 {[%emt 0:07:59]} 27. c3 {[%emt 0:03:34]} Qxd4 {[%emt 0:05:53]} 28. Rxd4 $14 {[%emt 0:01:17][%mdl 4096] Endgame KRR-KRR} Kf8 {[%emt 0:00:42] Prevents Re7.} 29. Kc2 {[%emt 0:03:49]} Re8 {[%emt 0:00:22]} 30. Rxe8+ {[%emt 0:00:44]} Kxe8 {[%emt 0:00:02] KR-KR. The position is equal.} 31. Kd3 {[%emt 0:00:58]} Kd7 {[%emt 0:01:19]} 32. Rf4 {[%emt 0:01:13]} Ke7 {[%emt 0:00:22]} 33. Re4+ {[%emt 0:01:18]} Kd7 {[%emt 0:00:02]} 34. Rf4 {[%emt 0:02:15]} Ke6 {[%emt 0:00:39]} 35. Re4+ {[%emt 0:00:35]} Kd7 {[%emt 0:00:45]} 36. Rf4 {Weighted Error Value: White=0.10 (very precise) /Black=0.06 (flawless)} 1/2-1/2

[Event "EYTCC Open U18 2022"]
[Site "Thessaloniki"]
[Date "2022.07.18"]
[Round "7.25"]
[White "Trost, Edvin"]
[Black "Bilych, Olexiy"]
[Result "1/2-1/2"]
[ECO "E10"]
[WhiteElo "2345"]
[BlackElo "2365"]
[Annotator "TA"]
[PlyCount "158"]
[EventDate "2022.07.12"]
[EventType "team-tourn"]
[EventCountry "GRE"]
[SourceTitle "playchess.com"]
[Source "ChessBase"]
[SourceQuality "1"]
[WhiteTeam "Sweden"]
[BlackTeam "Ukraine"]
[WhiteTeamCountry "SWE"]
[BlackTeamCountry "UKR"]
[TimeControl "40/5400+30:1800+30"]

{[%evp 11,158,4,32,34,23,35,56,50,60,39,48,37,45,32,52,18,111,126,112,112,114,117,121,113,130,133,133,126,136,127,127,126,133,115,110,112,115,114,116,115,129,122,140,135,142,137,142,135,151,149,147,104,102,113,111,105,118,93,120,105,249,239,222,102,92,96,209,200,173,174,254,274,265,265,244,247,455,418,433,96,102,69,70,36,69,20,20,20,20,20,20,0,17,0,20,17,17,17,17,17,17,8,20,20,20,20,20,20,20,20,20,20,20,20,20,20,20,20,20,20,20,20,20,20,20,20,22,22,22,22,22,22,22,22,36,36,29983,20,20,20,20,20,20,18,18,18,20,0,0]} 1. d4 {[%emt 0:00:05]} Nf6 {[%emt 0:00:05]} 2. c4 {[%emt 0:00:22]} e6 {[%emt 0:00:05]} 3. Nf3 {[%emt 0:00:22]} d5 {[%emt 0:00:07]} 4. g3 {[%emt 0:00:43]} Bb4+ {[%emt 0:00:41]} 5. Bd2 {[%emt 0:00:56]} a5 {[%emt 0:00:07]} 6. Bg2 {[%emt 0:00:00]} dxc4 {[%emt 0:00:12]} 7. Qc2 {[%emt 0:00:54] E04: Open Catalan: 5 Nf3.} Bxd2+ {[%emt 0:06:05]} 8. Qxd2 {[%emt 0:00:29]} b5 {[%emt 0:05:29]} 9. a4 {[%emt 0:00:19] White is slightly better.} c6 {[%emt 0:00:24]} 10. axb5 {[%emt 0:00:05]} cxb5 {[%emt 0:00:03]} 11. Qg5 {[%emt 0:00:09][%csl LRb5,LRg7]} O-O {[%emt 0:00:17]} 12. Qxb5 {[%emt 0:00:36]} Ba6 {[%emt 0:08:41]} 13. Qxa5 {[%emt 0:04:35] [#]} Qxa5+ $146 {[%emt 0:04:36]} (13... Bb7 $1 $11 14. Qxd8 Rxa1 15. Qxf8+ (15. Qb6 $2 Rxb1+ 16. Kd2 c3+ 17. Kxc3 Nd5+ 18. Kd2 Nxb6 $19) 15... Kxf8) ({Predecessor:} 13... Bb7 14. Qxd8 Rxa1 15. Qxf8+ Kxf8 16. O-O Ra2 17. Nbd2 Bxf3 18. Nxf3 Rxb2 19. Rc1 {½-½ (19) Xiong,J (2685)-Dreev,A (2623) Chess.com INT 2022}) 14. Rxa5 $16 {[%emt 0:00:09]} Nc6 {[%emt 0:00:02]} 15. Ra3 {[%emt 0:11:40]} Nd5 {[%emt 0:08:40]} 16. O-O {[%emt 0:05:24]} Rfb8 {[%emt 0:03:34]} 17. Nbd2 {[%emt 0:03:44]} ({Don't play} 17. e4 Nc7 $14) 17... Rxb2 {[%emt 0:25:18]} 18. Nxc4 {[%emt 0:01:43]} Rbb8 {[%emt 0:09:27]} (18... Rxe2 $2 19. Rfa1 Ncb4 20. Bf1) 19. Rfa1 Ncb4 {[%emt 0:01:52]} 20. Ne1 {[%emt 0:06:44] Against Nc2} Bb7 {[%emt 0:03:39]} 21. Rxa8 {[%emt 0:02:51]} Bxa8 {[%emt 0:00:44]} 22. Rb1 {[%emt 0:03:46]} Nc3 {[%emt 0:03:00][%csl LRb1,LRe2]} 23. Rb2 {[%emt 0:00:15] Bxa8 is the strong threat.} Bxg2 {[%emt 0:00:08]} 24. Kxg2 {[%emt 0:00:23]} Nc6 {[%emt 0:01:08]} 25. Rc2 {[%emt 0:02:44]} Nd5 {[%emt 0:00:11]} 26. Nf3 {[%emt 0:00:08]} Nde7 {[%emt 0:02:14]} 27. e3 {[%emt 0:03:10]} f6 {[%emt 0:00:19]} 28. Nd6 {[%emt 0:01:44]} Rd8 {[%emt 0:00:29]} 29. Nb7 {[%emt 0:00:23]} Rb8 {[%emt 0:00:09] [#]} 30. Nc5 {[%emt 0:00:08]} Kf7 {[%emt 0:00:05]} 31. Nd2 {[%emt 0:01:19]} e5 {[%emt 0:03:22]} 32. dxe5 {[%emt 0:00:07]} Nxe5 {[%emt 0:00:15]} 33. Nde4 {[%emt 0:00:48]} g5 {[%emt 0:01:26]} 34. Ra2 {[%emt 0:02:12]} g4 {[%emt 0:01:41]} 35. Ra6 {[%emt 0:08:36]} Ng8 {[%emt 0:03:18]} (35... N7c6 $16 {was worth a try.}) 36. Ra7+ $18 {[%emt 0:00:54]} Kg6 {[%emt 0:00:05]} 37. Nd7 {[%emt 0:00:08] Inhibits Rb6.} (37. Ne6 $18 {has better winning chances.}) 37... Nxd7 $16 {[%emt 0:00:17]} 38. Rxd7 {[%emt 0:00:13][%mdl 4096] Endgame KRN-KRN} h5 {[%emt 0:00:32]} (38... f5 $16) 39. Nc5 {[%emt 0:01:07]} Rb6 {[%emt 0:03:58]} 40. Nd3 {[%emt 0:00:00]} f5 {[%emt 0:00:00]} (40... Kh6 $142 41. Nf4 Rb5) 41. Nf4+ $18 {[%emt 0:01:56]} Kh6 {[%emt 0:00:27]} 42. Rd5 {[%emt 0:00:37]} Rf6 {[%emt 0:00:24]} 43. Re5 {[%emt 0:03:05] Against Ne7} Kg5 $2 {[%emt 0:02:58]} (43... Kh7 {was called for.} 44. Nxh5 Rf7) 44. e4 {[%emt 0:07:10] Threatens to win with Re8.} Nh6 {[%emt 0:02:09]} 45. Re7 $2 {[%emt 0:00:28]} (45. Rd5 $18 {Strongly threatening e5.} Ra6 46. e5) 45... fxe4 $16 {[%emt 0:01:13]} 46. Rg7+ {[%emt 0:00:41]} Kf5 {[%emt 0:00:06][%cal Oh5h4]} 47. Rd7 {[%emt 0:09:19][%cal Rd7d5]} Kg5 {[%emt 0:00:37]} 48. Re7 {[%emt 0:02:11] White is more active.} (48. h4+ $14 {feels stronger.} gxh3+ 49. Nxh3+ Kg6 50. Rd4) 48... Rxf4 $11 {[%emt 0:01:56]} 49. gxf4+ {[%emt 0:00:16]} Kxf4 {[%emt 0:00:04] KR-KN} 50. Rh7 {[%emt 0:01:30]} Kg5 {[%emt 0:00:04]} 51. Re7 {[%emt 0:00:44]} Kf4 {[%emt 0:00:07]} 52. Rh7 {[%emt 0:00:10]} Kg5 {[%emt 0:00:04]} 53. Rg7+ {[%emt 0:00:03]} Kf4 {[%emt 0:00:09]} 54. Ra7 {[%emt 0:00:52]} Nf5 {[%emt 0:00:05]} 55. Ra5 {[%emt 0:00:10]} h4 {[%emt 0:01:42]} 56. h3 {[%emt 0:00:30]} gxh3+ {[%emt 0:00:36]} 57. Kxh3 {[%emt 0:00:02]} e3 {[%emt 0:00:14]} 58. fxe3+ {[%emt 0:00:05]} Nxe3 {[%emt 0:00:06]} 59. Kxh4 {[%emt 0:00:04]} Nf5+ {[%emt 0:00:05]} 60. Kh3 {[%emt 0:00:03]} Ne3 {[%emt 0:00:24]} 61. Ra4+ {[%emt 0:00:09]} Kf3 {[%emt 0:00:16]} 62. Kh4 {[%emt 0:00:02]} Ng2+ {[%emt 0:00:09]} 63. Kg5 {[%emt 0:00:02]} Ne3 {[%emt 0:00:06]} 64. Kf6 {[%emt 0:00:06]} Ng4+ {[%emt 0:00:18]} 65. Kf5 {[%emt 0:00:03]} Ne3+ {[%emt 0:00:06]} 66. Ke5 {[%emt 0:00:01]} Ng4+ {[%emt 0:00:08]} 67. Kd4 {[%emt 0:00:02]} Kf4 {[%emt 0:00:09]} 68. Ra1 {[%emt 0:00:06]} Kf3 {[%emt 0:00:15]} 69. Ra8 {[%emt 0:00:06]} Nf2 {[%emt 0:00:17]} 70. Rf8+ {[%emt 0:00:05]} Kg3 {[%emt 0:00:10]} 71. Ke3 {[%emt 0:00:08]} Ng4+ {[%emt 0:00:05]} 72. Ke2 {[%emt 0:00:01]} Nh2 {[%emt 0:00:12]} 73. Rg8+ {[%emt 0:00:07]} Kf4 $2 {[%emt 0:00:09][%mdl 8192] [#]} (73... Ng4 $14) 74. Rh8 $2 {[%emt 0:00:09]} (74. Rg2 $1 {mates} Ng4 75. Rg1 Nf6 76. Kd3 Nd5 77. Re1 Nb4+ 78. Kd2 Nd5 79. Rh1) 74... Ng4 {[%emt 0:00:07] The position is equal.} 75. Rh4 {[%emt 0:00:02]} Kg3 {[%emt 0:00:07]} 76. Rh1 {[%emt 0:00:07]} Kf4 {[%emt 0:00:05]} 77. Rf1+ {[%emt 0:00:02]} Ke4 {[%emt 0:00:13]} 78. Rg1 {[%emt 0:00:07]} Kf4 {[%emt 0:00:04]} 79. Rxg4+ {[%emt 0:00:03]} Kxg4 {[%emt 0:00:04] Weighted Error Value: White=0.21 (precise) /Black=0.17 (very precise)} 1/2-1/2